bitfinex/quotes_ETHUSD_20241013
["timestamp","ask_amount","ask_price","bid_price","bid_amount"]
[1728815441129,0.7797,2474.7,2474.5,4.04111]
[1728815442050,1.62952056,2474.7,2474.5,4.04111]
[1728815442261,0.7797,2474.7,2474.5,4.04111]
[1728815442425,1.62952056,2474.7,2474.5,4.04111]
[1728815442828,0.7797,2474.7,2474.5,4.04111]
[1728815443031,1.62952056,2474.7,2474.5,4.04111]
[1728815443459,1.62952056,2474.7,2474.4,4.04135]
[1728815444643,1.62952056,2474.7,2474.5,4.0412]
[1728815445043,1.62952056,2474.7,2474.4,4.04135]
[1728815446480,1.62952056,2474.7,2474.5,4.04119]
[1728815448484,0.84982056,2474.7,2474.5,4.04119]
[1728815449044,0.84982056,2474.8,2474.5,4.929763]
[1728815450357,5.66968056,2474.9,2474.5,4.929763]
[1728815450561,5.66968056,2474.9,2474.5,4.04119]
[1728815450562,0.84982056,2474.8,2474.5,4.04119]
[1728815450761,5.66968056,2474.9,2474.5,4.04119]
[1728815453408,0.84982056,2474.8,2474.5,4.04119]
[1728815453911,0.84982056,2474.8,2474.5,4.0411]
[1728815454073,0.97336826,2475.0,2474.8,4.04073]
[1728815454267,0.97336826,2475.0,2474.9,4.04056]
[1728815454480,0.1235477,2475.0,2474.9,4.04056]
[1728815455199,0.1235477,2475.0,2474.9,5.41386]
[1728815455409,0.22754913,2475.0,2474.9,8.71559518]
[1728815455567,0.1235477,2475.0,2474.9,9.9912277]
[1728815456776,0.22405437,2475.0,2474.9,9.9912277]
[1728815458804,0.22405437,2475.0,2474.9,9.4412277]
[1728815459004,0.22405437,2475.0,2474.9,8.31619252]
[1728815461501,0.22405437,2475.0,2474.9,8.61776635]
[1728815461812,0.22405437,2475.0,2474.9,8.31619252]
[1728815463413,0.22405437,2475.0,2474.9,7.04056]
[1728815463970,0.22405437,2475.0,2474.9,3.0]
[1728815465709,0.22405437,2475.0,2474.9,7.04056]
[1728815466380,0.22405437,2475.0,2474.8,8.08127]
[1728815467017,0.22405437,2475.0,2474.9,4.04056]
[1728815469781,0.22405437,2475.0,2474.7,0.3014205]
[1728815470022,0.7849,2474.9,2474.8,3.0]
[1728815470190,0.88336354,2474.9,2474.6,4.04103]
[1728815473087,0.88336354,2474.9,2474.6,8.08201]
[1728815473286,0.88336354,2474.9,2474.6,4.04098]
[1728815476421,4.92394354,2474.9,2474.5,4.04119]
[1728815476828,5.83271866,2474.9,2474.5,4.04119]
[1728815477137,1.79213866,2474.9,2474.5,4.04119]
[1728815477333,1.79213866,2474.9,2474.6,4.04103]
[1728815477334,0.88336354,2474.9,2474.6,4.04103]
[1728815477879,0.88336354,2474.9,2474.5,4.04119]
[1728815479550,0.7832,2474.8,2474.5,3.0]
[1728815479896,0.09840823,2474.7,2474.4,4.34288841]
[1728815480211,0.7832,2474.8,2474.4,4.04138]
[1728815480418,4.82393,2474.8,2474.4,4.04138]
[1728815480597,4.82393,2474.8,2474.3,4.34307184]
[1728815480598,0.7832,2474.6,2474.3,4.34307184]
[1728815480924,0.09831348,2474.5,2474.4,3.0]
[1728815482964,0.7832,2474.4,2474.2,4.34321184]
[1728815483166,0.7832,2474.4,2474.2,4.04166]
[1728815483380,0.09815408,2474.3,2474.1,4.04178]
[1728815483556,0.09815408,2474.3,2474.1,8.08357]
[1728815483761,0.09815408,2474.3,2474.1,4.04178]
[1728815484531,4.13970408,2474.3,2474.0,3.30167638]
[1728815484739,4.13970408,2474.3,2473.9,4.04204]
[1728815484740,4.45576041,2474.2,2473.8,0.30167638]
[1728815484936,4.82521,2474.1,2473.7,0.30167638]
[1728815485148,0.88085211,2474.1,2473.6,0.30167638]
[1728815485375,0.88085211,2474.1,2473.7,4.04251]
[1728815486354,0.88085211,2474.1,2473.5,4.04273]
[1728815486553,0.7832,2473.9,2473.5,3.0]
[1728815486877,4.57579125,2474.0,2473.4,4.34460638]
[1728815486878,4.92289742,2473.8,2473.4,4.34460638]
[1728815487084,4.92289742,2473.8,2473.4,4.04293]
[1728815488057,0.88053742,2473.8,2473.4,4.04293]
[1728815489148,0.7832,2473.7,2473.3,4.04318]
[1728815489352,0.7832,2473.5,2473.2,4.04322]
[1728815489552,0.7832,2473.5,2473.0,8.08708]
[1728815489778,0.09703008,2473.4,2473.0,8.08708]
[1728815490604,0.09703008,2473.4,2473.0,4.04352]
[1728815491079,0.7832,2473.3,2473.0,4.04352]
[1728815491287,0.09696761,2473.2,2473.0,4.04352]
[1728815491493,0.7832,2473.3,2473.0,4.04352]
[1728815491787,0.09699222,2473.2,2473.0,4.04352]
[1728815492139,0.7832,2473.3,2473.0,4.04352]
[1728815492383,0.09692408,2473.1,2473.0,4.04352]
[1728815492556,0.7832,2473.3,2473.0,4.04352]
[1728815492754,0.09689947,2473.1,2473.0,4.04352]
[1728815493082,0.09688716,2473.1,2473.0,4.04352]
[1728815493385,0.7832,2473.3,2473.0,4.04352]
[1728815493559,0.09688716,2473.1,2473.0,4.04352]
[1728815493758,0.7832,2473.3,2473.0,4.04352]
[1728815494269,0.0969184,2473.2,2473.0,4.04352]
[1728815494467,0.7832,2473.3,2472.8,4.04388]
[1728815494681,0.7602,2473.2,2472.8,4.04388]
[1728815494868,0.09681596,2473.1,2472.8,4.04388]
[1728815495285,0.7602,2473.0,2472.8,4.04388]
[1728815495595,0.09668227,2472.9,2472.8,4.04388]
[1728815496497,0.09668227,2472.9,2472.6,7.0442]
[1728815496716,0.09668227,2472.9,2472.6,4.04431]
[1728815496992,0.09668227,2472.9,2472.7,4.04415]
[1728815497569,0.09668227,2472.9,2472.7,4.04407]
[1728815498084,0.09668227,2472.9,2472.7,4.04405]
[1728815504090,0.09668227,2472.9,2472.8,4.04399]
[1728815504903,0.09668227,2472.9,2472.7,4.04405]
[1728815507302,0.09668227,2472.9,2472.7,8.0881]
[1728815507969,0.09668227,2472.9,2472.7,4.04405]
[1728815508131,0.09668227,2472.9,2472.8,4.04399]
[1728815508940,0.7602,2473.2,2472.9,4.0438]
[1728815509427,5.283887,2473.2,2472.7,4.04407]
[1728815509631,9.327367,2473.2,2472.7,4.04407]
[1728815509941,0.7602,2473.1,2472.7,4.04407]
[1728815510808,0.7602,2473.1,2472.7,4.04404]
[1728815511644,0.7602,2473.1,2472.8,4.0439]
[1728815515424,0.09321947,2473.0,2472.8,4.0439]
[1728815517234,0.09321947,2473.0,2472.9,4.04383]
[1728815518451,0.09321947,2473.0,2472.8,4.0439]
[1728815521535,0.09321947,2473.0,2472.9,4.04383]
[1728815522664,0.09321947,2473.0,2472.9,4.852603]
[1728815523038,0.7912,2473.3,2473.1,4.04341]
[1728815527388,4.04261,2473.7,2473.2,4.04334]
[1728815527587,0.7912,2473.6,2473.3,4.04311]
[1728815530291,0.7912,2473.6,2473.3,4.927415]
[1728815530446,0.08977637,2473.5,2473.4,4.04301]
[1728815531814,0.7912,2473.8,2473.4,4.04301]
[1728815532083,0.08985559,2473.5,2473.4,4.04301]
[1728815532246,0.7912,2473.8,2473.4,4.04301]
[1728815532444,0.08990522,2473.5,2473.4,4.04301]
[1728815532678,0.7912,2473.8,2473.4,4.04301]
[1728815532879,0.08990522,2473.5,2473.4,4.04301]
[1728815533067,0.7912,2473.8,2473.4,4.04301]
[1728815533585,0.08999142,2473.7,2473.4,4.04301]
[1728815533958,4.83357,2473.8,2473.4,4.04301]
[1728815534163,0.08999789,2473.7,2473.4,4.04301]
[1728815534590,4.83357,2473.8,2473.4,4.04301]
[1728815534790,0.08996667,2473.6,2473.4,4.04301]
[1728815535086,4.83357,2473.8,2473.4,4.04301]
[1728815535295,0.08993544,2473.5,2473.4,4.04301]
[1728815535475,4.83357,2473.8,2473.4,4.04301]
[1728815535681,0.08993544,2473.5,2473.4,4.04301]
[1728815535862,4.83357,2473.8,2473.4,4.04301]
[1728815536064,0.08993544,2473.5,2473.4,4.04301]
[1728815536686,4.83357,2473.8,2473.4,4.04301]
[1728815536891,0.08993544,2473.5,2473.4,4.04301]
[1728815537212,0.08993544,2473.5,2473.4,8.08591]
[1728815537347,0.7912,2473.8,2473.4,4.0429]
[1728815537548,0.08999789,2473.7,2473.5,4.04283]
[1728815537788,0.7912,2473.8,2473.5,4.04283]
[1728815538053,0.08994293,2473.6,2473.5,4.04283]
[1728815538206,0.7912,2473.8,2473.5,4.04283]
[1728815538473,0.08995523,2473.6,2473.5,4.04283]
[1728815538699,0.7912,2473.8,2473.5,4.04283]
[1728815538899,0.08995523,2473.6,2473.5,4.04283]
[1728815539067,0.7912,2473.8,2473.5,4.04283]
[1728815539398,0.7912,2473.8,2473.4,4.04299]
[1728815539601,0.08998645,2473.7,2473.4,4.04299]
[1728815539763,0.08998645,2473.7,2473.4,0.7848]
[1728815539963,0.7912,2473.8,2473.4,1.42976619]
[1728815540277,0.08994293,2473.6,2473.5,4.04269]
[1728815540474,0.7912,2473.8,2473.5,4.04269]
[1728815540995,0.08996616,2473.7,2473.5,4.04269]
[1728815541504,0.7912,2473.8,2473.5,4.04269]
[1728815541660,0.08993493,2473.6,2473.5,4.04269]
[1728815541864,0.7912,2473.8,2473.5,4.04269]
[1728815542065,0.08993493,2473.6,2473.5,4.04269]
[1728815542260,0.7912,2473.8,2473.5,4.04269]
[1728815542507,0.08993493,2473.6,2473.5,4.04269]
[1728815543009,0.7912,2473.8,2473.5,4.04269]
[1728815543303,0.08993493,2473.6,2473.5,4.04269]
[1728815543510,0.7912,2473.8,2473.5,4.04269]
[1728815543663,0.08993493,2473.6,2473.5,4.04269]
[1728815543864,0.7912,2473.8,2473.5,4.04269]
[1728815544102,0.08993493,2473.6,2473.5,4.04269]
[1728815544308,0.7912,2473.8,2473.5,4.04269]
[1728815544783,0.08996616,2473.7,2473.5,4.04269]
[1728815545216,0.7912,2473.8,2473.5,4.04269]
[1728815545386,0.08996517,2473.6,2473.5,4.04269]
[1728815545710,0.7912,2473.8,2473.5,4.04269]
[1728815545884,0.08996517,2473.6,2473.5,4.04269]
[1728815546079,0.7912,2473.8,2473.5,4.04269]
[1728815546313,0.08996517,2473.6,2473.5,4.04269]
[1728815546471,0.7912,2473.8,2473.5,4.04269]
[1728815546675,0.08996517,2473.6,2473.5,4.04269]
[1728815546873,0.7912,2473.8,2473.5,4.04269]
[1728815547115,0.08996517,2473.6,2473.5,4.04269]
[1728815547587,4.04244,2473.8,2473.3,4.04309]
[1728815547784,0.90666517,2473.6,2473.3,4.04309]
[1728815548110,0.8167,2473.6,2473.3,4.04309]
[1728815548309,0.08993394,2473.5,2473.3,4.04309]
[1728815550709,0.08993394,2473.5,2473.3,4.04305]
[1728815551025,0.08993394,2473.5,2473.4,4.04301]
[1728815552978,0.7894,2473.8,2473.5,4.04285]
[1728815555380,0.7894,2473.8,2473.3,4.34525642]
[1728815555586,0.7894,2473.8,2473.4,4.043]
[1728815556848,0.7894,2473.8,2473.4,4.34530933]
[1728815557048,0.7894,2473.8,2473.4,4.043]
[1728815557810,0.7894,2473.8,2473.6,4.04267]
[1728815558533,0.7894,2473.8,2473.6,4.0426]
[1728815560344,0.08860736,2473.7,2473.6,4.0426]
[1728815560503,0.7894,2473.8,2473.6,4.0426]
[1728815560706,0.08860736,2473.7,2473.6,4.0426]
[1728815561143,0.7894,2473.8,2473.6,4.0426]
[1728815561307,0.08865052,2473.7,2473.6,4.0426]
[1728815561509,0.7894,2473.8,2473.6,4.0426]
[1728815561724,0.08865052,2473.7,2473.6,4.0426]
[1728815562045,0.7894,2473.8,2473.6,4.0426]
[1728815562253,0.08865052,2473.7,2473.6,4.0426]
[1728815562949,0.7894,2473.8,2473.6,4.0426]
[1728815563257,0.08865268,2473.7,2473.6,4.0426]
[1728815563612,0.7894,2473.8,2473.6,4.0426]
[1728815563912,0.08865268,2473.7,2473.6,4.0426]
[1728815564112,0.7894,2473.8,2473.6,4.0426]
[1728815564427,0.08865268,2473.7,2473.6,4.0426]
[1728815564757,0.7894,2473.8,2473.6,4.0426]
[1728815564950,0.08865268,2473.7,2473.6,4.0426]
[1728815565113,1.63922056,2473.8,2473.6,4.0426]
[1728815565312,0.08865268,2473.7,2473.6,4.0426]
[1728815565529,1.63922056,2473.8,2473.6,4.0426]
[1728815565727,0.08865268,2473.7,2473.6,4.0426]
[1728815566048,1.63922056,2473.8,2473.6,4.0426]
[1728815566260,0.08865268,2473.7,2473.6,4.0426]
[1728815566555,1.63922056,2473.8,2473.6,4.0426]
[1728815566732,0.08865268,2473.7,2473.6,4.0426]
[1728815566943,1.63922056,2473.8,2473.6,4.0426]
[1728815567138,0.08865268,2473.7,2473.6,4.0426]
[1728815567458,1.63922056,2473.8,2473.6,4.34519478]
[1728815567615,0.08865268,2473.7,2473.6,4.0426]
[1728815568330,1.63922056,2473.8,2473.6,4.0426]
[1728815568529,0.08865268,2473.7,2473.6,4.0426]
[1728815568817,1.63922056,2473.8,2473.6,4.0426]
[1728815569040,0.08865268,2473.7,2473.6,4.0426]
[1728815569438,1.63922056,2473.8,2473.6,4.0426]
[1728815569644,0.08865268,2473.7,2473.6,4.0426]
[1728815569917,1.63922056,2473.8,2473.5,4.04282]
[1728815570119,0.08865268,2473.7,2473.5,4.04282]
[1728815570352,1.63922056,2473.8,2473.5,4.04282]
[1728815570656,0.08865268,2473.7,2473.5,4.52722577]
[1728815570964,1.63922056,2473.8,2473.5,4.52722577]
[1728815571141,0.08865268,2473.7,2473.5,4.52722577]
[1728815571344,1.63922056,2473.8,2473.5,4.04282]
[1728815571539,0.08865268,2473.7,2473.5,4.04282]
[1728815571743,1.63922056,2473.8,2473.5,4.04282]
[1728815571946,0.08864038,2473.7,2473.5,4.52726967]
[1728815572126,1.63922056,2473.8,2473.5,4.52726987]
[1728815572321,0.93853475,2473.7,2473.5,4.04282]
[1728815572927,0.08871419,2473.7,2473.5,4.04282]
[1728815573261,0.84982056,2473.7,2473.5,4.04282]
[1728815573423,0.08869439,2473.6,2473.5,4.04282]
[1728815573624,0.08869439,2473.6,2473.5,4.52738402]
[1728815575425,0.08869439,2473.6,2473.5,4.04282]
[1728815575626,0.08869439,2473.6,2473.5,4.52742492]
[1728815575826,0.08869439,2473.6,2473.5,4.04282]
[1728815576026,0.08869439,2473.6,2473.5,4.52742388]
[1728815581782,0.08869439,2473.6,2473.5,4.04282]
[1728815581984,0.08869439,2473.6,2473.5,4.52741404]
[1728815584755,0.84982056,2473.8,2473.7,4.04252]
[1728815584956,0.93503521,2473.8,2473.7,4.04252]
[1728815585607,0.93503521,2473.8,2473.6,4.52710069]
[1728815585892,0.93503521,2473.8,2473.6,4.04267]
[1728815588460,0.93503521,2473.8,2473.6,4.0426]
[1728815592010,0.93503521,2473.8,2473.6,8.08518]
[1728815592213,0.93503521,2473.8,2473.7,4.04252]
[1728815592534,0.08521465,2473.8,2473.7,4.04252]
[1728815592670,0.08521465,2473.8,2473.7,0.48420753]
[1728815592878,0.08521465,2473.8,2473.6,4.04258]
[1728815593103,0.08521465,2473.8,2473.6,8.08519]
[1728815593311,0.08521465,2473.8,2473.7,0.48420343]
[1728815593483,0.08521465,2473.8,2473.7,5.01093223]
[1728815593686,0.08521465,2473.8,2473.7,0.96841223]
[1728815594438,0.08521465,2473.8,2473.7,0.48420343]
[1728815595985,0.08521465,2473.8,2473.7,4.52672343]
[1728815596187,0.08521465,2473.8,2473.7,4.04252]
[1728815598741,0.08521465,2473.8,2473.7,4.52664256]
[1728815598954,0.08521465,2473.8,2473.7,4.04252]
[1728815599747,0.08521465,2473.8,2473.7,5.75906307]
[1728815600259,0.84982056,2474.1,2474.0,4.04203]
[1728815601022,0.84982056,2474.1,2473.9,4.04209]
[1728815601665,1.60612056,2474.2,2473.9,4.04209]
[1728815603551,0.84982056,2474.1,2473.9,4.04209]
[1728815605177,0.84982056,2474.1,2473.9,8.08417]
[1728815605338,0.08235627,2474.0,2473.9,8.08417]
[1728815605972,0.08235627,2474.0,2473.9,4.04208]
[1728815608378,1.60612056,2474.2,2473.9,4.04208]
[1728815608560,0.08238749,2474.1,2473.9,4.04208]
[1728815609994,0.08238749,2474.1,2474.0,4.04203]
[1728815613916,0.08238749,2474.1,2473.9,4.04208]
[1728815614437,0.08238749,2474.1,2473.9,8.08419]
[1728815621828,0.08238749,2474.1,2474.0,4.04203]
[1728815622027,0.08238749,2474.1,2474.0,4.850441]
[1728815622529,0.84982056,2474.5,2474.4,4.04138]
[1728815623036,0.932211,2474.5,2474.4,4.04138]
[1728815623235,0.932211,2474.5,2474.3,4.04152]
[1728815623471,0.08239044,2474.5,2474.3,4.04152]
[1728815623635,0.932211,2474.5,2474.3,4.04152]
[1728815624633,0.08239044,2474.5,2474.3,4.04152]
[1728815625963,0.932211,2474.5,2474.3,4.04152]
[1728815626132,0.08239044,2474.5,2474.3,4.04152]
[1728815631171,0.08239044,2474.5,2474.3,4.04146]
[1728815631535,0.08239044,2474.5,2474.3,4.04145]
[1728815632252,0.08239044,2474.5,2474.3,8.0829]
[1728815632456,0.08239044,2474.5,2474.3,4.04145]
[1728815632651,0.08239044,2474.5,2474.3,8.08292]
[1728815632895,0.08239044,2474.5,2474.3,4.04145]
[1728815634293,0.08239044,2474.5,2474.3,8.08289]
[1728815634599,0.08239044,2474.5,2474.3,4.04144]
[1728815635487,0.08239044,2474.5,2474.3,8.08288]
[1728815635698,0.08239044,2474.5,2474.4,4.04138]
[1728815636054,0.08239044,2474.5,2474.3,4.04144]
[1728815636256,0.84982056,2474.7,2474.3,4.04144]
[1728815636497,0.0825719,2474.4,2474.3,4.04144]
[1728815636953,0.84982056,2474.7,2474.4,4.04132]
[1728815637153,0.08283695,2474.6,2474.5,4.04119]
[1728815637973,0.08282835,2474.6,2474.5,4.04119]
[1728815638491,1.61852056,2474.8,2474.5,4.04119]
[1728815638667,0.08282835,2474.6,2474.5,4.04119]
[1728815638988,0.08281605,2474.6,2474.5,4.04119]
[1728815639494,0.08281605,2474.6,2474.4,4.04137]
[1728815640160,1.61852056,2474.8,2474.5,4.04121]
[1728815640559,1.61852056,2474.8,2474.4,4.0413]
[1728815640762,1.61852056,2474.8,2474.4,8.08259]
[1728815640965,1.61852056,2474.8,2474.4,4.04129]
[1728815641557,1.61852056,2474.8,2474.4,8.08258]
[1728815641784,1.61852056,2474.8,2474.5,4.0412]
[1728815642593,1.61852056,2474.8,2474.6,4.04102]
[1728815644493,1.61852056,2474.8,2474.3,4.84913]
[1728815644668,1.61852056,2474.8,2474.5,4.04121]
[1728815645660,1.61852056,2474.8,2474.6,4.04104]
[1728815646060,1.61852056,2474.8,2474.5,4.04108]
[1728815648812,1.61852056,2474.8,2474.6,4.04103]
[1728815649405,1.61852056,2474.8,2474.5,4.04119]
[1728815649710,1.61852056,2474.8,2474.6,4.04103]
[1728815650008,0.84982056,2474.9,2474.7,4.04089]
[1728815650162,0.97336826,2475.0,2474.8,4.04073]
[1728815650364,0.97154016,2475.0,2474.9,4.04056]
[1728815650981,0.1235477,2475.0,2474.9,4.04056]
[1728815651589,0.1235477,2475.0,2474.8,4.04073]
[1728815653002,0.1235477,2475.0,2474.8,4.04064]
[1728815653322,0.1235477,2475.0,2474.8,8.08128]
[1728815653469,0.1235477,2475.0,2474.8,4.04064]
[1728815654312,0.1235477,2475.0,2474.9,4.04056]
[1728815657381,0.1235477,2475.0,2474.8,5.0103892]
[1728815658399,0.1235477,2475.0,2474.8,9.0510392]
[1728815659503,0.1235477,2475.0,2474.8,5.0103892]
[1728815659708,0.1235477,2475.0,2474.9,4.04056]
[1728815665531,0.20380743,2475.0,2474.9,4.04056]
[1728815670238,0.20380743,2475.0,2474.8,4.04072]
[1728815670994,0.20380743,2475.0,2474.9,4.04056]
[1728815682603,0.20380743,2475.0,2474.9,4.85116]
[1728815682800,0.20380743,2475.0,2474.9,5.78862719]
[1728815683301,0.1235477,2475.0,2474.9,5.78862719]
[1728815684206,0.19587952,2475.0,2474.9,5.78862719]
[1728815684566,0.1235477,2475.0,2474.9,5.78862719]
[1728815684874,0.19586723,2475.0,2474.9,5.78862719]
[1728815690931,0.19586723,2475.0,2474.9,4.97802719]
[1728815691249,0.19586723,2475.0,2474.9,4.04056]
[1728815695185,0.19586723,2475.0,2474.8,4.04072]
[1728815695473,0.7883,2474.9,2474.7,4.52393136]
[1728815695656,0.7883,2474.9,2474.7,4.04087]
[1728815695856,0.07247578,2474.8,2474.7,4.04087]
[1728815696060,0.07247578,2474.8,2474.7,4.34313876]
[1728815696516,0.07247578,2474.8,2474.7,4.82680617]
[1728815698492,0.07247578,2474.8,2474.7,4.34313876]
[1728815700348,0.07247578,2474.8,2474.7,4.04087]
[1728815700681,0.07247578,2474.8,2474.7,4.34320115]
[1728815701050,0.07247578,2474.8,2474.7,4.34320223]
[1728815704421,0.07247578,2474.8,2474.7,4.04087]
[1728815704594,0.07247578,2474.8,2474.7,4.34327469]
[1728815708306,0.07247578,2474.8,2474.7,4.04087]
[1728815708627,0.07247578,2474.8,2474.7,4.64561632]
[1728815710619,0.07247578,2474.8,2474.7,4.34323971]
[1728815712431,0.07247578,2474.8,2474.7,4.34320959]
[1728815715242,0.07247578,2474.8,2474.7,0.30233959]
[1728815715408,0.88107578,2474.8,2474.7,4.34322959]
[1728815716130,0.88107578,2474.8,2474.7,4.34324058]
[1728815717431,0.88107578,2474.8,2474.7,0.30235058]
[1728815718435,0.88107578,2474.8,2474.6,4.04093]
[1728815724249,0.88107578,2474.8,2474.7,4.04089]
[1728815724554,0.88107578,2474.8,2474.6,4.04093]
[1728815730812,0.88107578,2474.8,2474.5,4.04121]
[1728815732243,1.77635597,2474.8,2474.5,4.04121]
[1728815732452,0.92838858,2474.8,2474.5,4.04121]
[1728815733016,1.77635597,2474.8,2474.5,4.04121]
[1728815733857,1.68898445,2474.8,2474.3,4.52533327]
[1728815734168,1.60756739,2474.7,2474.4,0.30248408]
[1728815734315,0.7596,2474.6,2474.3,4.0415]
[1728815734511,0.11969618,2474.5,2474.3,4.0415]
[1728815734714,0.7596,2474.4,2474.3,4.0415]
[1728815734935,0.87919192,2474.4,2474.3,4.0415]
[1728815735140,0.87919192,2474.4,2474.3,0.30253455]
[1728815738219,0.87919192,2474.4,2474.3,0.30249801]
[1728815742268,0.87919192,2474.4,2474.3,4.34403801]
[1728815742473,0.87919192,2474.4,2474.3,4.34395713]
[1728815744448,0.87919192,2474.4,2474.3,4.34393194]
[1728815744628,0.87919192,2474.4,2474.3,4.04154]
[1728815745038,0.87919192,2474.4,2474.3,4.34392378]
[1728815745246,0.87919192,2474.4,2474.3,0.30238213]
[1728815745550,0.87919192,2474.4,2474.3,0.30236954]
[1728815745761,0.87919192,2474.4,2474.3,0.30237162]
[1728815746262,0.87919192,2474.4,2474.2,4.04168]
[1728815746883,0.87919192,2474.4,2474.3,0.30232528]
[1728815747381,1.45601385,2474.4,2474.2,0.30235613]
[1728815747539,1.45601385,2474.4,2474.1,11.08362]
[1728815747741,1.45601385,2474.4,2474.2,0.30232191]
[1728815747742,0.87919192,2474.4,2474.2,0.30232191]
[1728815748040,0.87919192,2474.4,2474.1,4.04177]
[1728815749379,0.87919192,2474.4,2474.0,4.04202]
[1728815749380,4.16099192,2474.4,2474.0,4.04202]
[1728815749550,0.7596,2474.3,2474.0,4.04202]
[1728815749757,0.1195389,2474.2,2474.0,4.04202]
[1728815750067,0.7596,2474.3,2474.0,4.04202]
[1728815750271,0.11950962,2474.1,2474.0,4.04202]
[1728815750777,0.7596,2474.3,2474.0,4.04202]
[1728815750991,0.11950962,2474.1,2474.0,4.04202]
[1728815751141,0.7596,2474.3,2474.0,4.04202]
[1728815751343,0.1195389,2474.2,2474.0,4.04202]
[1728815751578,0.7596,2474.3,2474.0,4.04202]
[1728815751888,0.11950962,2474.1,2474.0,4.04202]
[1728815752046,0.7596,2474.3,2474.0,4.04202]
[1728815752246,0.11950962,2474.1,2474.0,4.04202]
[1728815752460,0.7596,2474.3,2474.0,4.04202]
[1728815752667,0.11950962,2474.1,2474.0,4.04202]
[1728815752875,0.7596,2474.3,2474.0,4.04202]
[1728815753384,0.1195389,2474.2,2474.0,4.04202]
[1728815753607,0.7596,2474.3,2474.0,4.04202]
[1728815753898,0.11946865,2474.1,2474.0,4.04202]
[1728815754485,0.7596,2474.3,2474.0,4.04202]
[1728815754676,0.11946865,2474.1,2474.0,4.04202]
[1728815754852,0.7596,2474.3,2474.0,4.04202]
[1728815755053,0.11946865,2474.1,2474.0,4.04202]
[1728815755571,0.7596,2474.3,2474.0,4.04202]
[1728815755778,0.11946865,2474.1,2474.0,4.04202]
[1728815755980,0.7596,2474.3,2474.0,4.04202]
[1728815756176,0.11946865,2474.1,2474.0,4.04202]
[1728815756380,0.7596,2474.3,2474.0,4.04202]
[1728815756762,0.11949794,2474.2,2474.0,4.04202]
[1728815756956,0.7596,2474.3,2474.0,4.04202]
[1728815757289,0.11949794,2474.2,2474.0,4.04202]
[1728815757784,0.11946865,2474.1,2474.0,4.04202]
[1728815758173,0.7596,2474.3,2474.0,4.04202]
[1728815758376,0.11949794,2474.2,2474.0,4.04202]
[1728815758573,0.7596,2474.3,2474.0,4.04202]
[1728815758889,0.11949794,2474.2,2474.0,4.04202]
[1728815759267,0.7596,2474.3,2474.0,4.04202]
[1728815759466,0.11946865,2474.1,2474.0,4.04202]
[1728815759976,0.7596,2474.3,2474.0,4.04202]
[1728815760192,0.11949794,2474.2,2474.0,4.04202]
[1728815760392,0.7596,2474.3,2474.0,4.04202]
[1728815760600,0.11946865,2474.1,2473.9,4.04218]
[1728815760755,0.7596,2474.3,2473.9,4.04218]
[1728815760955,0.11949794,2474.2,2473.9,4.04218]
[1728815761306,0.7596,2474.3,2473.9,4.04218]
[1728815761499,0.11946865,2474.1,2474.0,4.04203]
[1728815761658,0.7596,2474.3,2474.0,4.04203]
[1728815761859,0.11946865,2474.1,2474.0,4.04203]
[1728815762096,0.7596,2474.3,2474.0,4.04203]
[1728815762606,0.11949794,2474.2,2474.0,4.04203]
[1728815762812,0.7596,2474.3,2474.0,4.04203]
[1728815762954,0.11946865,2474.1,2474.0,4.04203]
[1728815763157,0.7596,2474.3,2474.0,4.04203]
[1728815763350,0.11949794,2474.2,2474.0,4.04203]
[1728815763582,0.7596,2474.3,2474.0,4.04203]
[1728815763791,0.7596,2474.3,2474.1,4.04186]
[1728815764099,1.68096739,2474.5,2474.1,8.08364]
[1728815764258,1.68096739,2474.5,2474.1,4.04178]
[1728815764686,1.68096739,2474.5,2474.1,4.83138]
[1728815765358,5.72225739,2474.5,2474.1,4.83138]
[1728815766812,1.68096739,2474.5,2474.1,8.87317]
[1728815766960,1.68096739,2474.5,2474.1,4.83138]
[1728815767157,0.833,2474.5,2474.1,8.87317]
[1728815767353,0.833,2474.5,2474.1,4.83138]
[1728815769266,0.84796739,2474.8,2474.1,4.929205]
[1728815769576,0.84796739,2474.9,2474.6,4.83058]
[1728815770502,0.11150877,2474.8,2474.6,4.83058]
[1728815770795,0.97151509,2475.0,2474.6,4.83058]
[1728815771099,0.11150538,2474.7,2474.6,4.83058]
[1728815771263,0.97151509,2475.0,2474.6,4.83058]
[1728815771479,0.11151691,2474.7,2474.6,4.83058]
[1728815771678,0.97151509,2475.0,2474.6,4.83058]
[1728815771908,0.11151691,2474.7,2474.6,4.83058]
[1728815772110,0.97151509,2475.0,2474.6,4.83058]
[1728815772314,0.11157515,2474.7,2474.6,4.83058]
[1728815772481,0.97151509,2475.0,2474.6,4.83058]
[1728815772680,0.11156361,2474.7,2474.6,4.83058]
[1728815773325,0.97151509,2475.0,2474.6,4.83058]
[1728815773803,0.11163368,2474.9,2474.6,4.83058]
[1728815776132,0.11163368,2474.9,2474.6,0.7896]
[1728815776683,0.11163368,2474.9,2474.6,4.83057]
[1728815777021,4.15220368,2474.9,2474.5,4.04111]
[1728815777423,5.00017107,2474.9,2474.5,4.04111]
[1728815777717,4.87383,2474.8,2474.4,0.7993]
[1728815777890,4.87383,2474.8,2474.3,4.04143]
[1728815777891,4.0409,2474.7,2474.3,4.04143]
[1728815778099,4.15240286,2474.7,2474.3,4.04143]
[1728815778622,8.19343286,2474.7,2474.2,7.84098]
[1728815780116,4.15240286,2474.7,2474.2,7.84098]
[1728815780318,0.11150286,2474.7,2474.2,7.84098]
[1728815780651,4.15248286,2474.7,2474.2,7.84098]
[1728815780811,4.15248286,2474.7,2474.2,7.84092]
[1728815782357,4.04113,2474.6,2474.2,3.7993]
[1728815782552,0.8331,2474.5,2474.1,4.04187]
[1728815782792,0.94449914,2474.5,2474.1,4.04187]
[1728815784631,4.98571914,2474.5,2474.0,4.0419]
[1728815784966,6.09593019,2474.5,2474.0,4.0419]
[1728815785263,6.94389758,2474.5,2474.0,4.0419]
[1728815786432,4.04143,2474.4,2474.0,4.0419]
[1728815786654,4.15283448,2474.4,2474.0,4.0419]